fUSD/lending_fUSD_20250103
["ID","MTS","AMOUNT","RATE_DAILY","PERIOD"]
[347523629,1735902638315,-533.57,8.989e-05,2]
[347523630,1735902638324,-784.7,8.989e-05,2]
[347523631,1735902638333,-500.0,8.989e-05,2]
[347523632,1735902638343,-500.0,8.989e-05,2]
[347523633,1735902638434,-541.26,8.989e-05,2]
[347523634,1735902638445,-500.0,8.989e-05,2]
[347523635,1735902638454,-500.0,8.989e-05,2]
[347523636,1735902638463,-503.2972928,8.989e-05,2]
[347523637,1735902638473,-653.92,8.989e-05,2]
[347523638,1735902638482,-636.8,8.989e-05,2]
[347523639,1735902638491,-707.91,8.989e-05,2]
[347523640,1735902638501,-1358.79,8.989e-05,2]
[347523641,1735902638511,-500.0,8.989e-05,2]
[347523642,1735902638520,-500.0,8.989e-05,2]
[347523643,1735902638529,-869.81,8.989e-05,2]
[347523644,1735902638538,-830.95,8.989e-05,2]
[347523646,1735902638547,-500.0,8.989e-05,2]
[347523648,1735902638557,-798.56,8.989e-05,2]
[347523649,1735902638566,-500.0,8.989e-05,2]
[347523650,1735902638575,-3851.0,8.989e-05,2]
[347523651,1735902638584,-500.0,8.989e-05,2]
[347523652,1735902638593,-500.0,8.989e-05,2]
[347523654,1735902638602,-500.0,8.989e-05,2]
[347523656,1735902638612,-584.86,8.989e-05,2]
[347523658,1735902638622,-813.04,8.989e-05,2]
[347523660,1735902638632,-993.19,8.989e-05,2]
[347523661,1735902638641,-815.19,8.989e-05,2]
[347523662,1735902638650,-500.0,8.989e-05,2]
[347523663,1735902638660,-504.6303026,8.989e-05,2]
[347523664,1735902638669,-500.0,8.989e-05,2]
[347523665,1735902638678,-796.91,8.989e-05,2]
[347523666,1735902638688,-817.35,8.989e-05,2]
[347523667,1735902638697,-4093.24,8.989e-05,2]
[347523668,1735902638706,-500.0,8.989e-05,2]
[347523669,1735902638715,-500.0,8.989e-05,2]
[347523670,1735902638724,-3815.52,8.989e-05,2]
[347523671,1735902638734,-3713.19,8.989e-05,2]
[347523672,1735902638743,-500.0,8.989e-05,2]
[347523673,1735902638752,-500.0,8.989e-05,2]
[347523674,1735902638762,-632.52,8.989e-05,2]
[347523675,1735902638771,-1421.22,8.99e-05,2]
[347523676,1735902638781,-693.49,8.99e-05,2]
[347523677,1735902638791,-1115.6,8.99e-05,2]
[347523678,1735902638800,-1280.57,8.99e-05,2]
[347523679,1735902638809,-500.0,8.99e-05,2]
[347523680,1735902638819,-2327.52,8.99e-05,2]
[347523681,1735902638828,-1521.69,8.99e-05,2]
[347523682,1735902638838,-510.19349544,8.99e-05,2]
[347523683,1735902638847,-3030.51,8.99e-05,2]
[347523684,1735902638856,-2645.26,8.99e-05,2]
[347523685,1735902638865,-500.0,8.99e-05,2]
[347523686,1735902638875,-500.0,8.99e-05,2]
[347523687,1735902638884,-1230.57,8.99e-05,2]
[347523688,1735902638893,-1235.9,8.99e-05,2]
[347523689,1735902638902,-500.0,8.99e-05,2]
[347523690,1735902638911,-500.0,8.99e-05,2]
[347523691,1735902638921,-500.0,8.99e-05,2]
[347523692,1735902638930,-1210.43,8.99e-05,2]
[347523693,1735902638939,-500.0,8.99e-05,2]
[347523694,1735902638949,-1026.84,8.99e-05,2]
[347523695,1735902638958,-1079.56,8.99e-05,2]
[347523696,1735902638968,-1883.91,8.99e-05,2]
[347523697,1735902638977,-1357.54,8.99e-05,2]
[347523698,1735902638986,-1153.0,8.99e-05,2]
[347523699,1735902638995,-1124.09,8.99e-05,2]
[347523700,1735902639005,-1020.12,8.99e-05,2]
[347523701,1735902639014,-1791.53,8.99e-05,2]
[347523702,1735902639024,-1251.43,8.99e-05,2]
[347523703,1735902639033,-8661.07,8.99e-05,2]
[347523704,1735902639042,-1465.6,8.99e-05,2]
[347523705,1735902639051,-500.0,8.99e-05,2]
[347523706,1735902639060,-1847.1,8.99e-05,2]
[347523707,1735902639069,-857.59,8.99e-05,2]
[347523708,1735902639078,-1950.49,8.99e-05,2]
[347523709,1735902639087,-1196.94,8.99e-05,2]
[347523710,1735902639097,-7959.96,8.99e-05,2]
[347523711,1735902639106,-500.0,8.99e-05,2]
[347523712,1735902639115,-1496.58,8.99e-05,2]
[347523713,1735902639126,-2070.69,8.99e-05,2]
[347523714,1735902639135,-4461.69,8.99e-05,2]
[347523715,1735902639144,-7826.16,8.99e-05,2]
[347523716,1735902639153,-986.45,8.99e-05,2]
[347523717,1735902639162,-1217.19,8.99e-05,2]
[347523718,1735902639173,-926.96,8.99e-05,2]
[347523719,1735902639182,-967.33,8.99e-05,2]
[347523720,1735902639191,-4581.0,8.99e-05,2]
[347523721,1735902639201,-3980.57,8.99e-05,2]
[347523722,1735902639210,-1241.91,8.99e-05,2]
[347523723,1735902639223,-3339.94,8.99e-05,2]
[347523724,1735902639233,-5318.83,8.99e-05,2]
[347523725,1735902639242,-927.06,8.99e-05,2]
[347523726,1735902639251,-3430.29,8.99e-05,2]
[347523727,1735902639262,-884.51,8.99e-05,2]
[347523728,1735902639271,-1235.14,8.99e-05,2]
[347523729,1735902639280,-3995.3,8.99e-05,2]
[347523730,1735902639291,-573.74,8.99e-05,2]
[347523731,1735902639302,-1514.6,8.99e-05,2]
[347523732,1735902639312,-531.15,8.99e-05,2]
[347523733,1735902639321,-698.72,8.991e-05,2]
[347523734,1735902639330,-500.0,8.991e-05,2]
[347523735,1735902639339,-500.0,8.991e-05,2]
[347523736,1735902639349,-614.9096006,8.991e-05,2]
[347523737,1735902639359,-500.0,8.991e-05,2]
[347523738,1735902639368,-500.0,8.991e-05,2]
[347523739,1735902639378,-500.0,8.991e-05,2]
[347523740,1735902639387,-537.91,8.991e-05,2]
[347523741,1735902639397,-500.0,8.991e-05,2]
[347523742,1735902639407,-538.32,8.991e-05,2]
[347523743,1735902639416,-1251.68,8.991e-05,2]
[347523744,1735902639425,-500.0,8.991e-05,2]
[347523745,1735902639434,-534.72,8.991e-05,2]
[347523746,1735902639444,-806.29,8.991e-05,2]
[347523747,1735902639453,-500.0,8.991e-05,2]
[347523748,1735902639462,-942.31,8.991e-05,2]
[347523749,1735902639472,-1064.21,8.991e-05,2]
[347523750,1735902639481,-500.0,8.991e-05,2]
[347523751,1735902639490,-3997.41,8.991e-05,2]
[347523752,1735902639500,-4084.24337266,8.991e-05,2]
[347523753,1735902639509,-941.65,8.991e-05,2]
[347523754,1735902639518,-796.03,8.991e-05,2]
[347523755,1735902639527,-786.91,8.991e-05,2]
[347523756,1735902639536,-1429.54,8.991e-05,2]
[347523757,1735902639546,-1440.49,8.991e-05,2]
[347523758,1735902639555,-500.0,8.991e-05,2]
[347523759,1735902639564,-500.0,8.991e-05,2]
[347523760,1735902639573,-6560.79,8.991e-05,2]
[347523761,1735902639583,-500.0,8.991e-05,2]
[347523762,1735902639592,-653.17,8.991e-05,2]
[347523763,1735902639601,-500.0,8.991e-05,2]
[347523764,1735902639610,-3028.75,8.991e-05,2]
[347523765,1735902639619,-543.35,8.991e-05,2]
[347523766,1735902639629,-1117.72,8.991e-05,2]
[347523767,1735902639639,-500.0,8.991e-05,2]
[347523768,1735902639648,-2124.26,8.991e-05,2]
[347523769,1735902639657,-500.0,8.991e-05,2]
[347523770,1735902639666,-766.8,8.991e-05,2]
[347523771,1735902639675,-500.0,8.991e-05,2]
[347523772,1735902639684,-1331.21,8.991e-05,2]
[347523773,1735902639693,-1014.94,8.991e-05,2]
[347523774,1735902639702,-749.02,8.991e-05,2]
[347523775,1735902639711,-1521.31,8.991e-05,2]
[347523776,1735902639721,-508.6,8.991e-05,2]
[347523777,1735902639730,-500.0,8.991e-05,2]
[347523778,1735902639739,-2715.58,8.991e-05,2]
[347523779,1735902639748,-500.0,8.991e-05,2]
[347523780,1735902639759,-1772.95,8.991e-05,2]
[347523781,1735902639769,-4144.26,8.991e-05,2]
[347523782,1735902639778,-8237.28,8.991e-05,2]
[347523783,1735902639787,-7746.7,8.991e-05,2]
[347523784,1735902639796,-7545.1,8.991e-05,2]
[347523785,1735902639806,-1215.77,8.991e-05,2]
[347523786,1735902639815,-2183.91,8.991e-05,2]
[347523787,1735902639825,-3007.74,8.991e-05,2]
[347523788,1735902639834,-4518.86,8.991e-05,2]
[347523789,1735902639843,-4513.25,8.991e-05,2]
[347523790,1735902639853,-1064.17,8.991e-05,2]
[347523791,1735902639862,-3419.95,8.991e-05,2]
[347523792,1735902639872,-4862.53,8.991e-05,2]
[347523793,1735902639882,-2571.54,8.991e-05,2]
[347523794,1735902639891,-10230.25,8.991e-05,2]
[347523795,1735902639901,-7234.48,8.991e-05,2]
[347523796,1735902639911,-500.0,8.991e-05,2]
[347523797,1735902639920,-7558.99,8.991e-05,2]
[347523798,1735902639929,-3613.22,8.991e-05,2]
[347523799,1735902639938,-3381.61,8.991e-05,2]
[347523800,1735902639947,-2400.0,9e-05,3]
[347523801,1735902639957,-420.0,9.004e-05,2]
[347523802,1735902639965,-150.0,9.005e-05,2]
[347523803,1735902639975,-200.0,9.046e-05,2]
[347523804,1735902639984,-150.0,9.058e-05,2]
[347523805,1735902639993,-150.0,9.111e-05,2]
[347523806,1735902640003,-10912.0,9.118e-05,2]
[347523807,1735902640013,-500.0,9.123e-05,2]
[347523808,1735902640023,-1134.27,9.173e-05,2]
[347523809,1735902640033,-800.0,9.203e-05,2]
[347523810,1735902640042,-2100.0,9.203e-05,2]
[347523811,1735902640052,-429.51484354,9.205e-05,2]
[347523812,1735902640061,-150.0,9.216e-05,2]
[347523813,1735902640071,-1000.0,9.247e-05,2]
[347523814,1735902640080,-10457.66,9.261e-05,2]
[347523815,1735902640089,-4790.34,9.261e-05,2]
[347523816,1735902640099,-710.59,9.261e-05,2]
[347523817,1735902640108,-1382.88,9.261e-05,2]
[347523818,1735902640117,-738.19,9.261e-05,2]
[347523819,1735902640128,-2501.07,9.261e-05,2]
[347523820,1735902640137,-3090.84,9.261e-05,2]
[347523821,1735902640147,-2174.44,9.261e-05,2]
[347523822,1735902640156,-5779.08,9.261e-05,2]
[347523823,1735902640165,-1940.13,9.261e-05,2]
[347523824,1735902640175,-754.93,9.261e-05,2]
[347523825,1735902640184,-11462.03,9.261e-05,2]
[347523826,1735902640194,-5370.15,9.261e-05,2]
[347523827,1735902640203,-1615.76,9.261e-05,2]
[347523828,1735902640213,-1787.65,9.261e-05,2]
[347523829,1735902640226,-9061.24,9.261e-05,2]
[347523830,1735902640235,-4436.76,9.261e-05,2]
[347523831,1735902640245,-2433.9,9.261e-05,2]
[347523832,1735902640254,-4608.85,9.261e-05,2]
[347523833,1735902640265,-5268.56,9.261e-05,2]
[347523834,1735902640274,-1280.83,9.261e-05,2]
[347523835,1735902640284,-1345.6,9.261e-05,2]
[347523836,1735902640294,-3977.18,9.261e-05,2]
[347523837,1735902640303,-500.0,9.261e-05,2]
[347523838,1735902640314,-8381.32,9.261e-05,2]
[347523839,1735902640323,-968.91,9.261e-05,2]
[347523840,1735902640332,-3805.42,9.261e-05,2]
[347523841,1735902640341,-500.0,9.261e-05,2]
[347523842,1735902640350,-3843.04,9.261e-05,2]
[347523843,1735902640360,-2038.7,9.261e-05,2]
[347523844,1735902640369,-711.8,9.261e-05,2]
[347523845,1735902640379,-1723.33,9.261e-05,2]
[347523846,1735902640388,-500.0,9.261e-05,2]
[347523847,1735902640397,-2049.99,9.261e-05,2]
[347523848,1735902640407,-1283.37,9.261e-05,2]
[347523849,1735902640416,-1889.75,9.261e-05,2]
[347523850,1735902640426,-4196.83,9.261e-05,2]
[347523851,1735902640435,-1611.15,9.261e-05,2]
[347523852,1735902640444,-647.07251096,9.261e-05,2]
[347523853,1735902640453,-500.0,9.261e-05,2]
[347523854,1735902640462,-500.0,9.261e-05,2]
[347523855,1735902640472,-500.0,9.261e-05,2]
[347523856,1735902640481,-500.0,9.261e-05,2]
[347523857,1735902640490,-394.72652775,9.261e-05,2]
[347523858,1735902640500,-291.70479896,9.261e-05,2]
[347523859,1735902640509,-8759.0,9.262e-05,2]
[347523860,1735902640518,-5202.01,9.262e-05,2]
[347523861,1735902640527,-3005.91,9.262e-05,2]
[347523862,1735902640536,-3633.722199,9.262e-05,2]
[347523863,1735902640546,-10688.99,9.262e-05,2]
[347523864,1735902640555,-3817.647432,9.262e-05,2]
[347523865,1735902640565,-5366.9,9.262e-05,2]
[347523866,1735902640575,-2508.26,9.262e-05,2]
[347523867,1735902640584,-1550.52,9.262e-05,2]
[347523868,1735902640593,-1210.49,9.262e-05,2]
[347523869,1735902640603,-7953.32,9.262e-05,2]
[347523870,1735902640612,-2998.58,9.262e-05,2]
[347523871,1735902640623,-5673.1,9.262e-05,2]
[347523872,1735902640633,-4082.72,9.262e-05,2]
[347523873,1735902640642,-500.0,9.262e-05,2]
[347523874,1735902640652,-500.0,9.262e-05,2]
[347523875,1735902640662,-547.59,9.262e-05,2]
[347523876,1735902640671,-500.0,9.262e-05,2]
[347523877,1735902640681,-500.0,9.262e-05,2]
[347523878,1735902640690,-500.0,9.262e-05,2]
[347523879,1735902640700,-931.87,9.262e-05,2]
[347523880,1735902640710,-808.0,9.262e-05,2]
[347523881,1735902640719,-500.0,9.262e-05,2]
[347523882,1735902640728,-608.6,9.262e-05,2]
[347523883,1735902640737,-2546.54,9.262e-05,2]
[347523884,1735902640746,-500.0,9.262e-05,2]
[347523885,1735902640755,-1284.83,9.262e-05,2]
[347523886,1735902640764,-603.28,9.262e-05,2]
[347523887,1735902640773,-766.46,9.262e-05,2]
[347523888,1735902640782,-522.03,9.262e-05,2]
[347523889,1735902640791,-500.0,9.262e-05,2]
[347523890,1735902640801,-500.0,9.262e-05,2]
[347523891,1735902640810,-500.0,9.262e-05,2]
[347523892,1735902640819,-1958.84,9.262e-05,2]
[347523893,1735902640829,-500.0,9.262e-05,2]
[347523894,1735902640839,-584.3,9.262e-05,2]
[347523895,1735902640848,-959.19,9.262e-05,2]
[347523896,1735902640857,-500.0,9.262e-05,2]
[347523897,1735902640866,-500.0,9.262e-05,2]
[347523898,1735902640876,-1575.27,9.262e-05,2]
[347523899,1735902640886,-1617.25,9.262e-05,2]
[347523900,1735902640895,-500.0,9.262e-05,2]
[347523901,1735902640904,-500.0,9.262e-05,2]
[347523902,1735902640913,-500.0,9.262e-05,2]
[347523903,1735902640922,-505.53,9.262e-05,2]
[347523904,1735902640931,-500.0,9.262e-05,2]
[347523905,1735902640940,-1374.67,9.262e-05,2]
[347523906,1735902640949,-500.0,9.262e-05,2]
[347523907,1735902640958,-1441.07,9.262e-05,2]
[347523908,1735902640967,-500.0,9.262e-05,2]
[347523909,1735902640976,-500.0,9.262e-05,2]
[347523910,1735902640985,-1366.4,9.262e-05,2]
[347523911,1735902640995,-711.39,9.262e-05,2]
[347523912,1735902641004,-500.0,9.262e-05,2]
[347523913,1735902641015,-601.19,9.262e-05,2]
[347523914,1735902641024,-927.29,9.262e-05,2]
[347523915,1735902641033,-1861.34,9.262e-05,2]
[347523916,1735902641042,-917.25,9.262e-05,2]
[347523917,1735902641052,-1140.9,9.262e-05,2]
[347523918,1735902641062,-1317.79,9.262e-05,2]
[347523919,1735902641071,-649.87,9.262e-05,2]
[347523920,1735902641080,-500.0,9.262e-05,2]
[347523921,1735902641089,-840.31,9.262e-05,2]
[347523922,1735902641101,-500.0,9.262e-05,2]
[347523923,1735902641110,-500.0,9.262e-05,2]
[347523924,1735902641120,-500.0,9.262e-05,2]
[347523925,1735902641130,-500.0,9.262e-05,2]
[347523926,1735902641140,-2447.05,9.262e-05,2]
[347523927,1735902641150,-500.0,9.262e-05,2]
[347523928,1735902641160,-331.35135766,9.262e-05,2]
[347523929,1735902641169,-500.0,9.262e-05,2]
[347523930,1735902641179,-736.79,9.262e-05,2]
[347523931,1735902641188,-500.0,9.262e-05,2]
[347523932,1735902641197,-1371.4,9.262e-05,2]
[347523933,1735902641206,-1056.27,9.262e-05,2]
[347523934,1735902641218,-645.04,9.262e-05,2]
[347523935,1735902641227,-500.0,9.262e-05,2]
[347523936,1735902641236,-861.18,9.262e-05,2]
[347523937,1735902641246,-1110.15,9.262e-05,2]
[347523938,1735902641255,-500.0,9.262e-05,2]
[347523939,1735902641264,-575.82,9.262e-05,2]
[347523940,1735902641273,-500.0,9.262e-05,2]
[347523941,1735902641282,-1639.22,9.262e-05,2]
[347523942,1735902641291,-500.0,9.262e-05,2]
[347523943,1735902641300,-500.0,9.262e-05,2]
[347523944,1735902641309,-500.0,9.262e-05,2]
[347523945,1735902641319,-500.0,9.262e-05,2]
[347523946,1735902641328,-3609.39,9.262e-05,2]
[347523947,1735902641338,-1632.21,9.262e-05,2]
[347523948,1735902641348,-1283.88,9.262e-05,2]
[347523949,1735902641358,-1628.84,9.262e-05,2]
[347523950,1735902641367,-500.0,9.262e-05,2]
[347523951,1735902641377,-500.0,9.262e-05,2]
[347523952,1735902641386,-500.0,9.262e-05,2]
[347523953,1735902641395,-595.91,9.262e-05,2]
[347523954,1735902641404,-1002.73,9.262e-05,2]
[347523955,1735902641413,-500.0,9.262e-05,2]
[347523956,1735902641423,-999.47,9.262e-05,2]
[347523957,1735902641432,-500.0,9.262e-05,2]
[347523958,1735902641442,-500.0,9.262e-05,2]
[347523959,1735902641451,-3204.96,9.262e-05,2]
[347523960,1735902641460,-1628.8,9.262e-05,2]
[347523961,1735902641470,-500.0,9.262e-05,2]
[347523962,1735902641479,-500.0,9.262e-05,2]
[347523963,1735902641489,-500.0,9.262e-05,2]
[347523964,1735902641498,-3397.5,9.262e-05,2]
[347523965,1735902641508,-1475.29,9.262e-05,2]
[347523966,1735902641517,-500.0,9.262e-05,2]
[347523967,1735902641527,-500.0,9.262e-05,2]
[347523968,1735902641536,-500.0,9.262e-05,2]
[347523969,1735902641546,-1426.24,9.262e-05,2]
[347523970,1735902641555,-500.0,9.262e-05,2]
[347523971,1735902641564,-1490.93,9.262e-05,2]
[347523972,1735902641574,-500.0,9.262e-05,2]
[347523973,1735902641583,-500.0,9.262e-05,2]
[347523974,1735902641593,-763.51,9.262e-05,2]
[347523975,1735902641602,-4452.17,9.262e-05,2]
[347523976,1735902641612,-1571.75,9.262e-05,2]
[347523977,1735902641621,-500.0,9.262e-05,2]
[347523978,1735902641631,-500.0,9.262e-05,2]
[347523979,1735902641640,-538.84,9.262e-05,2]
[347523980,1735902641650,-2006.33,9.262e-05,2]
[347523981,1735902641659,-678.37,9.262e-05,2]
[347523982,1735902641668,-982.25,9.262e-05,2]
[347523983,1735902641677,-248.54039732,9.262e-05,2]
[347523984,1735902641687,-500.0,9.262e-05,2]
[347523985,1735902641697,-500.0,9.262e-05,2]
[347523986,1735902641707,-500.0,9.262e-05,2]
[347523987,1735902641716,-1115.39,9.262e-05,2]
[347523988,1735902641726,-1622.45,9.262e-05,2]
[347523989,1735902641735,-3142.09,9.262e-05,2]
[347523990,1735902641744,-500.0,9.262e-05,2]
[347523991,1735902641755,-1053.94,9.262e-05,2]
[347523992,1735902641764,-569.09,9.262e-05,2]
[347523993,1735902641774,-581.07,9.262e-05,2]
[347523994,1735902641784,-2679.64,9.262e-05,2]
[347523995,1735902641793,-534.84,9.262e-05,2]
[347523996,1735902641803,-500.0,9.262e-05,2]
[347523997,1735902641813,-500.0,9.262e-05,2]
[347523998,1735902641824,-1329.46,9.262e-05,2]
[347523999,1735902641835,-500.0,9.262e-05,2]
[347524000,1735902641844,-827.27,9.262e-05,2]
[347524001,1735902641854,-500.0,9.262e-05,2]
[347524002,1735902641863,-500.0,9.262e-05,2]
[347524003,1735902641874,-566.97,9.262e-05,2]
[347524004,1735902641884,-1150.04,9.262e-05,2]
[347524005,1735902641893,-785.77,9.262e-05,2]
[347524006,1735902641903,-859.56,9.262e-05,2]
[347524007,1735902641912,-1965.34,9.262e-05,2]
[347524008,1735902641923,-500.0,9.262e-05,2]
[347524009,1735902641933,-629.1,9.262e-05,2]
[347524010,1735902641942,-1468.52,9.262e-05,2]
[347524011,1735902641953,-500.0,9.262e-05,2]
[347524012,1735902641963,-1802.18,9.262e-05,2]
[347524013,1735902641972,-6131.12,9.262e-05,2]
[347524014,1735902641982,-500.0,9.262e-05,2]
[347524015,1735902641992,-500.0,9.262e-05,2]
[347524016,1735902642001,-500.0,9.262e-05,2]
[347524017,1735902642011,-565.87,9.262e-05,2]
[347524018,1735902642021,-579.65,9.262e-05,2]
[347524019,1735902642031,-637.85,9.262e-05,2]
[347524020,1735902642040,-563.79,9.262e-05,2]
[347524021,1735902642052,-742.22,9.262e-05,2]
[347524022,1735902642062,-500.0,9.262e-05,2]
[347524023,1735902642071,-500.0,9.262e-05,2]
[347524024,1735902642081,-500.0,9.262e-05,2]
[347524025,1735902642091,-1191.18,9.262e-05,2]
[347524026,1735902642101,-1068.37,9.262e-05,2]
[347524027,1735902642111,-704.37,9.262e-05,2]
[347524028,1735902642120,-500.0,9.262e-05,2]
[347524029,1735902642131,-500.0,9.262e-05,2]
[347524030,1735902642140,-4407.09,9.262e-05,2]
[347524031,1735902642150,-695.54,9.262e-05,2]
[347524032,1735902642160,-925.07,9.262e-05,2]
[347524033,1735902642169,-500.0,9.262e-05,2]
[347524034,1735902642179,-500.0,9.262e-05,2]
[347524035,1735902642188,-500.0,9.262e-05,2]
[347524036,1735902642197,-500.0,9.262e-05,2]
[347524037,1735902642207,-500.0,9.262e-05,2]
[347524038,1735902642219,-1294.14,9.262e-05,2]
[347524039,1735902642229,-1967.31,9.262e-05,2]
[347524040,1735902642239,-543.65,9.262e-05,2]
[347524041,1735902642249,-1334.14,9.262e-05,2]
[347524042,1735902642259,-978.4,9.262e-05,2]
[347524043,1735902642269,-2384.66,9.262e-05,2]
[347524044,1735902642279,-813.61,9.262e-05,2]
[347524045,1735902642291,-500.0,9.262e-05,2]
[347524046,1735902642301,-10393.43,9.262e-05,2]
[347524047,1735902642311,-925.31,9.262e-05,2]
[347524048,1735902642320,-1165.77,9.262e-05,2]
[347524049,1735902642329,-500.0,9.262e-05,2]
[347524050,1735902642338,-2010.38,9.262e-05,2]
[347524051,1735902642348,-566.46,9.262e-05,2]
[347524052,1735902642357,-706.81,9.262e-05,2]
[347524053,1735902642366,-1028.7,9.262e-05,2]
[347524054,1735902642376,-560.18,9.262e-05,2]
[347524055,1735902642386,-1129.89,9.262e-05,2]
[347524056,1735902642395,-642.0,9.262e-05,2]
[347524057,1735902642405,-4639.05,9.262e-05,2]
[347524058,1735902642415,-1413.44,9.262e-05,2]
[347524059,1735902642424,-6125.39,9.262e-05,2]
[347524060,1735902642434,-2172.59,9.262e-05,2]
[347524061,1735902642445,-1137.15,9.262e-05,2]
[347524062,1735902642456,-579.43,9.262e-05,2]
[347524063,1735902642466,-500.0,9.262e-05,2]
[347524064,1735902642476,-547.21,9.262e-05,2]
[347524065,1735902642486,-1284.01,9.262e-05,2]
[347524066,1735902642495,-754.87,9.262e-05,2]
[347524067,1735902642505,-500.0,9.262e-05,2]
[347524068,1735902642515,-500.0,9.262e-05,2]
[347524069,1735902642525,-861.53,9.262e-05,2]
[347524070,1735902642535,-736.86,9.262e-05,2]
[347524071,1735902642544,-500.0,9.262e-05,2]
[347524072,1735902642554,-870.4,9.262e-05,2]
[347524073,1735902642564,-500.0,9.262e-05,2]
[347524074,1735902642574,-500.0,9.262e-05,2]
[347524075,1735902642585,-5651.97,9.262e-05,2]
[347524076,1735902642595,-500.0,9.262e-05,2]
[347524077,1735902642605,-697.36,9.262e-05,2]
[347524078,1735902642615,-2230.06,9.262e-05,2]
[347524079,1735902642626,-1106.35,9.262e-05,2]
[347524080,1735902642636,-500.0,9.262e-05,2]
[347524081,1735902642646,-500.0,9.262e-05,2]
[347524082,1735902642658,-1922.56,9.262e-05,2]
[347524083,1735902642668,-500.0,9.262e-05,2]
[347524084,1735902642677,-508.72,9.262e-05,2]
[347524085,1735902642688,-500.0,9.262e-05,2]
[347524086,1735902642697,-1373.84,9.262e-05,2]
[347524087,1735902642707,-572.41,9.262e-05,2]
[347524088,1735902642716,-1943.57,9.262e-05,2]
[347524089,1735902642726,-500.0,9.262e-05,2]
[347524090,1735902642736,-3644.16,9.262e-05,2]
[347524091,1735902642745,-759.44,9.262e-05,2]
[347524092,1735902642754,-500.0,9.262e-05,2]
[347524093,1735902642765,-976.8,9.262e-05,2]
[347524094,1735902642774,-1982.64,9.262e-05,2]
[347524095,1735902642784,-500.0,9.262e-05,2]
[347524096,1735902642793,-500.0,9.262e-05,2]
[347524097,1735902642803,-500.0,9.262e-05,2]
[347524098,1735902642812,-988.38,9.262e-05,2]
[347524099,1735902642821,-1764.29,9.262e-05,2]
[347524100,1735902642831,-500.0,9.262e-05,2]
[347524101,1735902642842,-547.43,9.262e-05,2]
[347524102,1735902642851,-509.26,9.262e-05,2]
[347524103,1735902642860,-1307.49,9.262e-05,2]
[347524104,1735902642870,-655.7,9.262e-05,2]
[347524105,1735902642880,-1134.31,9.262e-05,2]
[347524106,1735902642890,-4027.45,9.262e-05,2]
[347524107,1735902642899,-1354.34,9.262e-05,2]
[347524108,1735902642908,-579.57,9.262e-05,2]
[347524109,1735902642917,-500.0,9.262e-05,2]
[347524110,1735902642927,-881.54,9.262e-05,2]
[347524111,1735902642937,-500.0,9.262e-05,2]
[347524112,1735902642946,-1650.23,9.262e-05,2]
[347524113,1735902642956,-1348.51,9.262e-05,2]
[347524114,1735902642966,-500.0,9.262e-05,2]
[347524115,1735902642975,-814.05,9.262e-05,2]
[347524116,1735902642985,-795.45,9.262e-05,2]
[347524117,1735902642994,-1068.9,9.262e-05,2]
[347524118,1735902643003,-500.0,9.262e-05,2]
[347524119,1735902643013,-1090.05,9.262e-05,2]
[347524120,1735902643022,-630.72,9.262e-05,2]
[347524122,1735902643032,-650.68,9.262e-05,2]
[347524124,1735902643041,-500.0,9.262e-05,2]
[347524125,1735902643051,-678.63,9.262e-05,2]
[347524126,1735902643061,-1052.17,9.262e-05,2]
[347524127,1735902643070,-1021.38,9.262e-05,2]
[347524128,1735902643080,-500.0,9.262e-05,2]
[347524129,1735902643090,-1124.25,9.262e-05,2]
[347524130,1735902643099,-1187.62,9.262e-05,2]
[347524132,1735902643109,-646.46,9.262e-05,2]
[347524133,1735902643119,-11932.89,9.262e-05,2]
[347524134,1735902643129,-1042.65,9.262e-05,2]
[347524135,1735902643139,-500.0,9.262e-05,2]
[347524136,1735902643148,-500.0,9.262e-05,2]
[347524137,1735902643158,-500.0,9.262e-05,2]